[Event "*** Titled Tuesday Blitz"]
[Site "Chess.com"]
[Date "2020.10.20"]
[Round "8"]
[White "zverr1"]
[Black "Kaslask"]
[Result "0-1"]
[WhiteElo "2407"]
[BlackElo "2309"]
[TimeControl "180+1"]
[EndTime "11:36:59 PDT"]
[Termination "Kaslask won by checkmate"]

1. d4 {[%clk 0:03:00.9]} 1... Nf6 {[%clk 0:02:59.7]} 2. c4 {[%clk 0:02:58.7]}
2... g6 {[%clk 0:02:59.5]} 3. Nc3 {[%clk 0:02:58.5]} 3... d5 {[%clk 0:02:59.3]}
4. cxd5 {[%clk 0:02:58.9]} 4... Nxd5 {[%clk 0:02:59.3]} 5. Bd2 {[%clk
0:02:58.6]} 5... Bg7 {[%clk 0:02:57.4]} 6. e4 {[%clk 0:02:57.3]} 6... Nxc3
{[%clk 0:02:56.5]} 7. Bxc3 {[%clk 0:02:58.2]} 7... c5 {[%clk 0:02:55.1]} 8. d5
{[%clk 0:02:58]} 8... Bxc3+ {[%clk 0:02:47.4]} 9. bxc3 {[%clk 0:02:58.9]} 9...
O-O {[%clk 0:02:47]} 10. Qd2 {[%clk 0:02:58.6]} 10... Qd6 {[%clk 0:02:46.1]} 11.
f4 {[%clk 0:02:58.3]} 11... e5 {[%clk 0:02:38.5]} 12. fxe5 {[%clk 0:02:47.8]}
12... Qxe5 {[%clk 0:02:38]} 13. Nf3 {[%clk 0:02:48.2]} 13... Qxe4+ {[%clk
0:02:33.8]} 14. Be2 {[%clk 0:02:45.3]} 14... Re8 {[%clk 0:02:29.2]} 15. O-O
{[%clk 0:02:33.8]} 15... Qxe2 {[%clk 0:02:23.1]} 16. Rfe1 {[%clk 0:02:28.5]}
16... Qb5 {[%clk 0:02:10.1]} 17. Qh6 {[%clk 0:02:20]} 17... f6 {[%clk
0:01:47.5]} 18. c4 {[%clk 0:02:03.7]} 18... Qd7 {[%clk 0:01:44.6]} 19. Nh4
{[%clk 0:01:26.5]} 19... Qf7 {[%clk 0:01:40.9]} 20. Qf4 {[%clk 0:01:10.8]} 20...
Bd7 {[%clk 0:01:34]} 21. Qd6 {[%clk 0:01:05.4]} 21... Na6 {[%clk 0:01:30.3]} 22.
Rab1 {[%clk 0:00:42.3]} 22... Rxe1+ {[%clk 0:01:29]} 23. Rxe1 {[%clk 0:00:43.2]}
23... Re8 {[%clk 0:01:27.8]} 24. Rb1 {[%clk 0:00:42.1]} 24... b6 {[%clk
0:01:19.3]} 25. Rf1 {[%clk 0:00:35.4]} 25... f5 {[%clk 0:01:13]} 26. Nf3 {[%clk
0:00:35.4]} 26... Qe7 {[%clk 0:01:12.5]} 27. Qf4 {[%clk 0:00:32]} 27... Qe3+
{[%clk 0:01:11.6]} 28. Qxe3 {[%clk 0:00:31]} 28... Rxe3 {[%clk 0:01:12]} 29. Re1
{[%clk 0:00:29.8]} 29... Rxe1+ {[%clk 0:01:10.6]} 30. Nxe1 {[%clk 0:00:30.7]}
30... Nb4 {[%clk 0:01:08.7]} 31. a3 {[%clk 0:00:30.7]} 31... Na2 {[%clk
0:01:05.6]} 32. Nd3 {[%clk 0:00:29.4]} 32... Kf7 {[%clk 0:01:02.2]} 33. Kf2
{[%clk 0:00:29.4]} 33... Kf6 {[%clk 0:01:01.1]} 34. Ke3 {[%clk 0:00:29.6]} 34...
Nc3 {[%clk 0:01:00.5]} 35. h4 {[%clk 0:00:26.2]} 35... Nb1 {[%clk 0:00:57.8]}
36. Kf4 {[%clk 0:00:19]} 36... Nxa3 {[%clk 0:00:55.9]} 37. Ne5 {[%clk
0:00:19.6]} 37... Be8 {[%clk 0:00:55.3]} 38. g4 {[%clk 0:00:19.8]} 38... fxg4
{[%clk 0:00:54.4]} 39. Nxg4+ {[%clk 0:00:20.7]} 39... Ke7 {[%clk 0:00:47.7]} 40.
Ne3 {[%clk 0:00:17.5]} 40... Kd6 {[%clk 0:00:45.5]} 41. Ke4 {[%clk 0:00:18]}
41... a6 {[%clk 0:00:42.1]} 42. Kd3 {[%clk 0:00:17.6]} 42... b5 {[%clk
0:00:42.2]} 43. Kc3 {[%clk 0:00:18.1]} 43... b4+ {[%clk 0:00:41.3]} 44. Kb3
{[%clk 0:00:17.9]} 44... a5 {[%clk 0:00:41.5]} 45. Ng4 {[%clk 0:00:18]} 45...
a4+ {[%clk 0:00:41.1]} 46. Ka2 {[%clk 0:00:18]} 46... Nxc4 {[%clk 0:00:41.2]}
47. Nf6 {[%clk 0:00:18.4]} 47... Bf7 {[%clk 0:00:39.8]} 48. Nxh7 {[%clk
0:00:18.4]} 48... b3+ {[%clk 0:00:39.3]} 49. Kb1 {[%clk 0:00:17.5]} 49... Bxd5
{[%clk 0:00:38.3]} 50. Nf6 {[%clk 0:00:15.9]} 50... Ke5 {[%clk 0:00:37.4]} 51.
Nd7+ {[%clk 0:00:15.1]} 51... Kd4 {[%clk 0:00:37.1]} 52. h5 {[%clk 0:00:14.7]}
52... Be4+ {[%clk 0:00:37.2]} 53. Ka1 {[%clk 0:00:12.8]} 53... b2+ {[%clk
0:00:37.6]} 54. Ka2 {[%clk 0:00:13.4]} 54... b1=Q# {[%clk 0:00:37.4]} 0-1

[Event "*** Titled Tuesday Blitz"]
[Site "Chess.com"]
[Date "2020.10.20"]
[Round "8"]
[White "KetiGrant"]
[Black "German_Bazeev"]
[Result "0-1"]
[WhiteElo "2342"]
[BlackElo "2718"]
[TimeControl "180+1"]
[EndTime "11:37:00 PDT"]
[Termination "German_Bazeev won on time"]

1. e4 {[%clk 0:03:00.9]} 1... c6 {[%clk 0:02:57.7]} 2. d4 {[%clk 0:03:00.2]}
2... d5 {[%clk 0:02:58.3]} 3. e5 {[%clk 0:03:00.4]} 3... Na6 {[%clk 0:02:58.3]}
4. Nf3 {[%clk 0:02:51.9]} 4... g6 {[%clk 0:02:55.6]} 5. Be2 {[%clk 0:02:51]}
5... Nc7 {[%clk 0:02:55.3]} 6. h3 {[%clk 0:02:47.5]} 6... Bg7 {[%clk 0:02:55.5]}
7. O-O {[%clk 0:02:47.5]} 7... Nh6 {[%clk 0:02:55.6]} 8. c3 {[%clk 0:02:40.3]}
8... O-O {[%clk 0:02:54.7]} 9. Bf4 {[%clk 0:02:35.8]} 9... f6 {[%clk 0:02:54.7]}
10. exf6 {[%clk 0:02:25.4]} 10... exf6 {[%clk 0:02:55.6]} 11. Bxc7 {[%clk
0:02:23.4]} 11... Qxc7 {[%clk 0:02:54.3]} 12. Nbd2 {[%clk 0:02:24.3]} 12... Nf7
{[%clk 0:02:44.4]} 13. Re1 {[%clk 0:02:23.7]} 13... Bd7 {[%clk 0:02:41.9]} 14.
Bd3 {[%clk 0:02:22.7]} 14... Rfe8 {[%clk 0:02:41.7]} 15. Qc2 {[%clk 0:02:23.2]}
15... Rxe1+ {[%clk 0:02:38.6]} 16. Rxe1 {[%clk 0:02:22]} 16... Re8 {[%clk
0:02:39.5]} 17. Qd1 {[%clk 0:02:15.8]} 17... Rxe1+ {[%clk 0:02:38.3]} 18. Qxe1
{[%clk 0:02:15.3]} 18... f5 {[%clk 0:02:28.8]} 19. Nb3 {[%clk 0:01:57.5]} 19...
b6 {[%clk 0:02:25.5]} 20. a4 {[%clk 0:01:55.1]} 20... a5 {[%clk 0:02:19]} 21.
Nbd2 {[%clk 0:01:50.8]} 21... Qd6 {[%clk 0:02:09.6]} 22. h4 {[%clk 0:01:42.6]}
22... Bf8 {[%clk 0:02:08.8]} 23. g3 {[%clk 0:01:41.8]} 23... Qe6 {[%clk
0:02:07.7]} 24. Qxe6 {[%clk 0:01:22]} 24... Bxe6 {[%clk 0:02:08.6]} 25. Kg2
{[%clk 0:01:22.1]} 25... Bd6 {[%clk 0:02:07.9]} 26. Kf1 {[%clk 0:01:04.4]} 26...
Kg7 {[%clk 0:02:06.1]} 27. Ke2 {[%clk 0:01:04.8]} 27... f4 {[%clk 0:02:05.3]}
28. gxf4 {[%clk 0:00:59]} 28... Bxf4 {[%clk 0:02:06.2]} 29. b4 {[%clk
0:00:56.2]} 29... Bg4 {[%clk 0:01:58.4]} 30. Nb3 {[%clk 0:00:53.8]} 30... g5
{[%clk 0:01:49.7]} 31. h5 {[%clk 0:00:45.5]} 31... Bc7 {[%clk 0:01:32.2]} 32.
bxa5 {[%clk 0:00:41.6]} 32... bxa5 {[%clk 0:01:33.1]} 33. Nc5 {[%clk 0:00:41.9]}
33... Nd8 {[%clk 0:01:32.5]} 34. Bc2 {[%clk 0:00:20.7]} 34... Bxh5 {[%clk
0:01:19.6]} 35. Bd1 {[%clk 0:00:19.1]} 35... g4 {[%clk 0:01:05.9]} 36. Nh4
{[%clk 0:00:15.7]} 36... g3+ {[%clk 0:01:04.3]} 37. f3 {[%clk 0:00:14.4]} 37...
Kf6 {[%clk 0:00:55.6]} 38. Ng2 {[%clk 0:00:10.3]} 38... Bg6 {[%clk 0:00:50.8]}
39. Ke3 {[%clk 0:00:09.6]} 39... Nf7 {[%clk 0:00:42.9]} 40. f4 {[%clk
0:00:09.5]} 40... Nd6 {[%clk 0:00:43.2]} 41. Bg4 {[%clk 0:00:07.8]} 41... h5
{[%clk 0:00:41.6]} 42. Bd7 {[%clk 0:00:04.9]} 42... Nf5+ {[%clk 0:00:40.9]} 43.
Kf3 {[%clk 0:00:04.6]} 43... h4 {[%clk 0:00:41.4]} 44. Bxf5 {[%clk 0:00:04]}
44... Bh5+ {[%clk 0:00:35]} 45. Bg4 {[%clk 0:00:01.2]} 45... h3 {[%clk
0:00:35.4]} 0-1

[Event "*** Titled Tuesday Blitz"]
[Site "Chess.com"]
[Date "2020.10.20"]
[Round "8"]
[White "anpospan"]
[Black "natelleka"]
[Result "1-0"]
[WhiteElo "2372"]
[BlackElo "2203"]
[TimeControl "180+1"]
[EndTime "11:37:01 PDT"]
[Termination "anpospan won by checkmate"]

1. Nf3 {[%clk 0:03:00.9]} 1... d5 {[%clk 0:02:58.7]} 2. g3 {[%clk 0:03:01]} 2...
Nf6 {[%clk 0:02:58.7]} 3. Bg2 {[%clk 0:03:01.5]} 3... Bf5 {[%clk 0:02:59.2]} 4.
O-O {[%clk 0:03:02.1]} 4... h6 {[%clk 0:02:59.6]} 5. b3 {[%clk 0:03:02.3]} 5...
e6 {[%clk 0:02:59.7]} 6. Bb2 {[%clk 0:03:02.8]} 6... Be7 {[%clk 0:03:00.1]} 7.
d3 {[%clk 0:03:03.3]} 7... Bh7 {[%clk 0:02:59.9]} 8. Re1 {[%clk 0:03:03.6]} 8...
O-O {[%clk 0:03:00.4]} 9. Nbd2 {[%clk 0:03:03.8]} 9... c6 {[%clk 0:03:00.8]} 10.
e4 {[%clk 0:03:03.4]} 10... Nbd7 {[%clk 0:02:57.6]} 11. e5 {[%clk 0:03:03]}
11... Ne8 {[%clk 0:02:56.6]} 12. h4 {[%clk 0:03:03]} 12... a5 {[%clk 0:02:54.3]}
13. a4 {[%clk 0:03:01.9]} 13... b5 {[%clk 0:02:53.7]} 14. Nh2 {[%clk 0:03:00.6]}
14... Nb6 {[%clk 0:02:40.5]} 15. Ba3 {[%clk 0:02:35.5]} 15... bxa4 {[%clk
0:02:31.6]} 16. Bxe7 {[%clk 0:02:32.1]} 16... Qxe7 {[%clk 0:02:31.9]} 17. bxa4
{[%clk 0:02:32]} 17... Nc7 {[%clk 0:02:10.8]} 18. Qg4 {[%clk 0:02:04.3]} 18...
Qb4 {[%clk 0:02:02.8]} 19. Qxb4 {[%clk 0:01:56.2]} 19... axb4 {[%clk 0:02:02.2]}
20. a5 {[%clk 0:01:55.7]} 20... Nd7 {[%clk 0:01:59.5]} 21. Nhf3 {[%clk
0:01:37.4]} 21... c5 {[%clk 0:01:55.3]} 22. Reb1 {[%clk 0:01:34.2]} 22... Rfb8
{[%clk 0:01:46.8]} 23. Rb2 {[%clk 0:01:33.1]} 23... Nb5 {[%clk 0:01:40.7]} 24.
Nb3 {[%clk 0:01:19.9]} 24... Na3 {[%clk 0:01:05.5]} 25. Bf1 {[%clk 0:01:12.8]}
25... c4 {[%clk 0:00:58.8]} 26. Nbd4 {[%clk 0:01:01.7]} 26... Ra6 {[%clk
0:00:22.2]} 27. dxc4 {[%clk 0:00:36.6]} 27... dxc4 {[%clk 0:00:20.9]} 28. c3
{[%clk 0:00:36.3]} 28... bxc3 {[%clk 0:00:09.1]} 29. Rxb8+ {[%clk 0:00:33.9]}
29... Nxb8 {[%clk 0:00:09.4]} 30. Rxa3 {[%clk 0:00:33.4]} 30... c2 {[%clk
0:00:09.8]} 31. Rc3 {[%clk 0:00:27.5]} 31... Rxa5 {[%clk 0:00:08.6]} 32. Rxc4
{[%clk 0:00:26.8]} 32... Kf8 {[%clk 0:00:06.2]} 33. Nxc2 {[%clk 0:00:25]} 33...
Ra2 {[%clk 0:00:05.3]} 34. Rc8+ {[%clk 0:00:23.9]} 34... Ke7 {[%clk 0:00:04.4]}
35. Rxb8 {[%clk 0:00:24]} 35... Bxc2 {[%clk 0:00:04.1]} 36. Rb7+ {[%clk
0:00:23.1]} 36... Ke8 {[%clk 0:00:04]} 37. Nd4 {[%clk 0:00:21.7]} 37... Be4
{[%clk 0:00:03.1]} 38. Bb5+ {[%clk 0:00:20.7]} 38... Kf8 {[%clk 0:00:01.7]} 39.
Rb8+ {[%clk 0:00:20.7]} 39... Ke7 {[%clk 0:00:01.9]} 40. Re8# {[%clk 0:00:20.8]}
1-0

[Event "*** Titled Tuesday Blitz"]
[Site "Chess.com"]
[Date "2020.10.20"]
[Round "8"]
[White "Flopezin"]
[Black "GAusal"]
[Result "1/2-1/2"]
[WhiteElo "2349"]
[BlackElo "2051"]
[TimeControl "180+1"]
[EndTime "11:37:03 PDT"]
[Termination "Game drawn by repetition"]

1. c4 {[%clk 0:03:00.9]} 1... e5 {[%clk 0:02:55.9]} 2. Nc3 {[%clk 0:03:01]} 2...
d6 {[%clk 0:02:49.1]} 3. d4 {[%clk 0:03:00.7]} 3... e4 {[%clk 0:02:48.7]} 4.
Nxe4 {[%clk 0:03:00.1]} 4... Bf5 {[%clk 0:02:44.2]} 5. Nc3 {[%clk 0:02:58.2]}
5... Nf6 {[%clk 0:02:39.8]} 6. Bg5 {[%clk 0:02:54.3]} 6... Be7 {[%clk 0:02:36]}
7. Nf3 {[%clk 0:02:48.2]} 7... Ne4 {[%clk 0:02:31.8]} 8. Nxe4 {[%clk 0:02:44.5]}
8... Bxe4 {[%clk 0:02:27.4]} 9. Bxe7 {[%clk 0:02:45]} 9... Qxe7 {[%clk
0:02:23.3]} 10. e3 {[%clk 0:02:45.7]} 10... O-O {[%clk 0:02:18.4]} 11. Bd3
{[%clk 0:02:45.5]} 11... d5 {[%clk 0:02:10.9]} 12. Bxe4 {[%clk 0:02:42]} 12...
dxe4 {[%clk 0:02:09.9]} 13. Nd2 {[%clk 0:02:41.1]} 13... c5 {[%clk 0:02:03.5]}
14. d5 {[%clk 0:02:36.3]} 14... Nd7 {[%clk 0:01:58.8]} 15. Qc2 {[%clk
0:02:35.5]} 15... f5 {[%clk 0:01:57.6]} 16. O-O {[%clk 0:02:27.5]} 16... Ne5
{[%clk 0:01:58]} 17. f4 {[%clk 0:02:22.7]} 17... exf3 {[%clk 0:01:53.6]} 18.
Nxf3 {[%clk 0:02:21.1]} 18... Ng4 {[%clk 0:01:49]} 19. Rae1 {[%clk 0:02:16.8]}
19... Rae8 {[%clk 0:01:43.8]} 20. Qd3 {[%clk 0:01:50.7]} 20... Nxe3 {[%clk
0:01:38.4]} 21. Rf2 {[%clk 0:01:35.8]} 21... f4 {[%clk 0:01:34.5]} 22. Nd2
{[%clk 0:01:35.8]} 22... Qh4 {[%clk 0:01:23.8]} 23. h3 {[%clk 0:01:10.4]} 23...
Qg5 {[%clk 0:01:13.2]} 24. Nf1 {[%clk 0:01:07.3]} 24... Nf5 {[%clk 0:01:02.7]}
25. Re4 {[%clk 0:00:57.9]} 25... Nd4 {[%clk 0:00:57.6]} 26. Nd2 {[%clk
0:00:53.1]} 26... b6 {[%clk 0:00:52.6]} 27. Nf3 {[%clk 0:00:52.8]} 27... Qf5
{[%clk 0:00:47.5]} 28. Nd2 {[%clk 0:00:36.8]} 28... g5 {[%clk 0:00:42.1]} 29. g4
{[%clk 0:00:29.6]} 29... Qg6 {[%clk 0:00:38]} 30. Rf1 {[%clk 0:00:30]} 30... f3
{[%clk 0:00:27.7]} 31. Kf2 {[%clk 0:00:24.2]} 31... Qd6 {[%clk 0:00:21.7]} 32.
Rh1 {[%clk 0:00:12.8]} 32... Rxe4 {[%clk 0:00:19.6]} 33. Nxe4 {[%clk 0:00:12.8]}
33... Qf4 {[%clk 0:00:18.5]} 34. Ng3 {[%clk 0:00:11.8]} 34... Re8 {[%clk
0:00:16.8]} 35. Rg1 {[%clk 0:00:04]} 35... Re2+ {[%clk 0:00:16.5]} 36. Nxe2
{[%clk 0:00:03.7]} 36... fxe2+ {[%clk 0:00:16.8]} 37. Ke1 {[%clk 0:00:03.8]}
37... Qc1+ {[%clk 0:00:16.5]} 38. Kf2 {[%clk 0:00:03.5]} 38... Qf4+ {[%clk
0:00:15.8]} 39. Ke1 {[%clk 0:00:04]} 39... Qc1+ {[%clk 0:00:15.2]} 40. Kf2
{[%clk 0:00:04.4]} 40... Qf4+ {[%clk 0:00:14.6]} 1/2-1/2

[Event "*** Titled Tuesday Blitz"]
[Site "Chess.com"]
[Date "2020.10.20"]
[Round "8"]
[White "GukeshDommaraju"]
[Black "xamax2000"]
[Result "1-0"]
[WhiteElo "2827"]
[BlackElo "2671"]
[TimeControl "180+1"]
[EndTime "11:37:07 PDT"]
[Termination "GukeshDommaraju won by resignation"]

1. d4 {[%clk 0:03:00.9]} 1... d5 {[%clk 0:02:58.5]} 2. Nf3 {[%clk 0:03:00.1]}
2... e6 {[%clk 0:02:58.5]} 3. Bf4 {[%clk 0:03:00.2]} 3... c5 {[%clk 0:02:59.2]}
4. e3 {[%clk 0:03:00.3]} 4... Nf6 {[%clk 0:02:59.7]} 5. Nbd2 {[%clk 0:03:00.4]}
5... Bd6 {[%clk 0:03:00.4]} 6. dxc5 {[%clk 0:02:59.6]} 6... Bxc5 {[%clk
0:02:56.1]} 7. Bd3 {[%clk 0:02:58.6]} 7... O-O {[%clk 0:02:47.2]} 8. O-O {[%clk
0:02:57.9]} 8... Nbd7 {[%clk 0:02:38.1]} 9. e4 {[%clk 0:02:53.2]} 9... dxe4
{[%clk 0:02:37.8]} 10. Nxe4 {[%clk 0:02:52.3]} 10... Nxe4 {[%clk 0:02:38.3]} 11.
Bxe4 {[%clk 0:02:49.8]} 11... Nf6 {[%clk 0:02:39.2]} 12. Bd3 {[%clk 0:02:45.2]}
12... b6 {[%clk 0:02:34.3]} 13. Qe2 {[%clk 0:02:36.7]} 13... Bb7 {[%clk
0:02:34.6]} 14. Rad1 {[%clk 0:02:35.9]} 14... Qe7 {[%clk 0:02:32.6]} 15. c3
{[%clk 0:02:24.3]} 15... Rfd8 {[%clk 0:02:31.4]} 16. Bb1 {[%clk 0:02:24.1]}
16... h6 {[%clk 0:02:20.7]} 17. Ne5 {[%clk 0:02:21]} 17... Rxd1 {[%clk
0:02:04.4]} 18. Rxd1 {[%clk 0:02:20.7]} 18... Rd8 {[%clk 0:02:05.3]} 19. Rxd8+
{[%clk 0:02:14.3]} 19... Qxd8 {[%clk 0:02:06.2]} 20. h3 {[%clk 0:02:14.6]} 20...
Qd5 {[%clk 0:02:04.2]} 21. Nf3 {[%clk 0:02:07.9]} 21... a5 {[%clk 0:01:18.7]}
22. Qd2 {[%clk 0:01:54.4]} 22... Kf8 {[%clk 0:01:11.4]} 23. Qxd5 {[%clk
0:01:51.9]} 23... Nxd5 {[%clk 0:01:12.3]} 24. Be5 {[%clk 0:01:51.4]} 24... f6
{[%clk 0:01:11.2]} 25. Bd4 {[%clk 0:01:51.2]} 25... Bxd4 {[%clk 0:01:10.1]} 26.
Nxd4 {[%clk 0:01:52.1]} 26... e5 {[%clk 0:01:10.2]} 27. Ne6+ {[%clk 0:01:49.4]}
27... Kg8 {[%clk 0:01:02.7]} 28. Be4 {[%clk 0:01:43.4]} 28... b5 {[%clk
0:00:43.8]} 29. Nc5 {[%clk 0:01:34.4]} 29... Bc6 {[%clk 0:00:33]} 30. Nb3 {[%clk
0:01:19.4]} 30... Ne7 {[%clk 0:00:27.8]} 31. Bd3 {[%clk 0:01:17.2]} 31... a4
{[%clk 0:00:24.3]} 32. Nc5 {[%clk 0:01:16.5]} 32... Kf7 {[%clk 0:00:21.7]} 33.
c4 {[%clk 0:01:13.8]} 33... b4 {[%clk 0:00:11.3]} 34. Bc2 {[%clk 0:01:10.8]}
34... a3 {[%clk 0:00:11.5]} 35. b3 {[%clk 0:01:09.9]} 35... Nc8 {[%clk 0:00:09]}
36. Na6 {[%clk 0:01:08.7]} 36... Ke7 {[%clk 0:00:08.2]} 37. Nxb4 {[%clk
0:01:08.2]} 37... Ba8 {[%clk 0:00:08.8]} 38. Bd3 {[%clk 0:01:06.1]} 38... Kd6
{[%clk 0:00:08.1]} 39. Nc2 {[%clk 0:01:06.3]} 39... Kc5 {[%clk 0:00:07.8]} 40.
b4+ {[%clk 0:01:06.1]} 40... Kd6 {[%clk 0:00:08]} 41. Nxa3 {[%clk 0:01:06.2]}
41... e4 {[%clk 0:00:08.6]} 42. Nb5+ {[%clk 0:01:06.3]} 42... Ke5 {[%clk
0:00:09.5]} 43. Be2 {[%clk 0:01:05.6]} 43... Bc6 {[%clk 0:00:08.8]} 44. Nc3
{[%clk 0:01:03.7]} 44... Nd6 {[%clk 0:00:08.3]} 45. c5 {[%clk 0:01:02.7]} 45...
Nb7 {[%clk 0:00:07.8]} 46. b5 {[%clk 0:01:01.7]} 46... Be8 {[%clk 0:00:08.7]}
47. c6 {[%clk 0:01:02]} 47... Na5 {[%clk 0:00:08.5]} 48. c7 {[%clk 0:00:56]}
48... Bd7 {[%clk 0:00:08]} 49. b6 {[%clk 0:00:56.5]} 49... Kd4 {[%clk
0:00:05.7]} 50. Nb5+ {[%clk 0:00:49.9]} 50... Kc5 {[%clk 0:00:05.3]} 51. Na7
{[%clk 0:00:50.1]} 51... Kxb6 {[%clk 0:00:04.8]} 52. c8=Q {[%clk 0:00:50.4]}
52... Bxc8 {[%clk 0:00:05]} 53. Nxc8+ {[%clk 0:00:51.3]} 53... Kc7 {[%clk
0:00:05.4]} 54. Ne7 {[%clk 0:00:51.7]} 54... g5 {[%clk 0:00:04.7]} 1-0

[Event "*** Titled Tuesday Blitz"]
[Site "Chess.com"]
[Date "2020.10.20"]
[Round "8"]
[White "JoliyRoger"]
[Black "YIYUKI"]
[Result "1-0"]
[WhiteElo "2436"]
[BlackElo "2316"]
[TimeControl "180+1"]
[EndTime "11:37:07 PDT"]
[Termination "JoliyRoger won on time"]

1. Nf3 {[%clk 0:02:55.5]} 1... Nf6 {[%clk 0:02:59.3]} 2. c4 {[%clk 0:02:55]}
2... g6 {[%clk 0:02:58.2]} 3. d4 {[%clk 0:02:55.4]} 3... Bg7 {[%clk 0:02:58.3]}
4. Nc3 {[%clk 0:02:56.2]} 4... d6 {[%clk 0:02:58.3]} 5. e4 {[%clk 0:02:56.7]}
5... O-O {[%clk 0:02:58.1]} 6. h3 {[%clk 0:02:57.3]} 6... c6 {[%clk 0:02:57.5]}
7. Bg5 {[%clk 0:02:56.6]} 7... a6 {[%clk 0:02:57]} 8. a3 {[%clk 0:02:55.5]} 8...
b5 {[%clk 0:02:56.7]} 9. cxb5 {[%clk 0:02:54.9]} 9... axb5 {[%clk 0:02:50.7]}
10. Be2 {[%clk 0:02:52]} 10... Nbd7 {[%clk 0:02:47.6]} 11. O-O {[%clk
0:02:52.3]} 11... h6 {[%clk 0:02:47.4]} 12. Be3 {[%clk 0:02:51.3]} 12... e5
{[%clk 0:02:46]} 13. Qd2 {[%clk 0:02:49.2]} 13... Kh7 {[%clk 0:02:45.9]} 14.
Rfd1 {[%clk 0:02:49.3]} 14... Qe7 {[%clk 0:02:35.4]} 15. Rac1 {[%clk 0:02:22.7]}
15... Bb7 {[%clk 0:02:31.3]} 16. d5 {[%clk 0:02:05.9]} 16... Nc5 {[%clk
0:01:53.6]} 17. Qc2 {[%clk 0:01:41.3]} 17... Rfc8 {[%clk 0:01:29.9]} 18. Bxc5
{[%clk 0:01:10.4]} 18... dxc5 {[%clk 0:01:28.7]} 19. dxc6 {[%clk 0:01:10.8]}
19... Bxc6 {[%clk 0:01:27.4]} 20. Bxb5 {[%clk 0:01:10]} 20... Bxb5 {[%clk
0:00:51.6]} 21. Nxb5 {[%clk 0:01:09.2]} 21... Rcb8 {[%clk 0:00:43.4]} 22. Nd6
{[%clk 0:01:00.5]} 22... Nh5 {[%clk 0:00:38.2]} 23. Nc4 {[%clk 0:00:52.6]} 23...
Nf4 {[%clk 0:00:37.3]} 24. Rd2 {[%clk 0:00:45.1]} 24... Ra6 {[%clk 0:00:32.9]}
25. Rcd1 {[%clk 0:00:45.2]} 25... g5 {[%clk 0:00:32.5]} 26. Rd7 {[%clk
0:00:44.4]} 26... Qe6 {[%clk 0:00:32.4]} 27. R7d6 {[%clk 0:00:41.3]} 27... Rxd6
{[%clk 0:00:30.5]} 28. Rxd6 {[%clk 0:00:39.5]} 28... Qc8 {[%clk 0:00:22]} 29.
Nfxe5 {[%clk 0:00:31.1]} 29... Bxe5 {[%clk 0:00:14.9]} 30. Nxe5 {[%clk
0:00:31.2]} 30... Qc7 {[%clk 0:00:07.5]} 31. Qd2 {[%clk 0:00:20.5]} 31... Re8
{[%clk 0:00:06.4]} 32. Ng4 {[%clk 0:00:17.4]} 32... Qe7 {[%clk 0:00:04.5]} 33.
e5 {[%clk 0:00:17.5]} 33... Kg7 {[%clk 0:00:03.2]} 34. Kh2 {[%clk 0:00:15.1]}
34... h5 {[%clk 0:00:02.2]} 35. Rd7 {[%clk 0:00:09.5]} 35... Qe6 {[%clk
0:00:01.5]} 36. Ne3 {[%clk 0:00:07.7]} 1-0

[Event "*** Titled Tuesday Blitz"]
[Site "Chess.com"]
[Date "2020.10.20"]
[Round "8"]
[White "MarceloPlaya"]
[Black "alejanchess73"]
[Result "1-0"]
[WhiteElo "2301"]
[BlackElo "2404"]
[TimeControl "180+1"]
[EndTime "11:37:07 PDT"]
[Termination "MarceloPlaya won by resignation"]

1. e4 {[%clk 0:03:00.9]} 1... c5 {[%clk 0:02:42.9]} 2. Nf3 {[%clk 0:02:54.2]}
2... d6 {[%clk 0:02:41.6]} 3. d4 {[%clk 0:02:53.8]} 3... cxd4 {[%clk 0:02:38]}
4. Nxd4 {[%clk 0:02:53.7]} 4... Nf6 {[%clk 0:02:38.2]} 5. Nc3 {[%clk 0:02:53.5]}
5... a6 {[%clk 0:02:38]} 6. Bg5 {[%clk 0:02:53.1]} 6... e6 {[%clk 0:02:37.5]} 7.
f4 {[%clk 0:02:52.3]} 7... Be7 {[%clk 0:02:37.7]} 8. Qf3 {[%clk 0:02:52.2]} 8...
Nbd7 {[%clk 0:02:36]} 9. O-O-O {[%clk 0:02:51.5]} 9... h6 {[%clk 0:02:36.3]} 10.
Bh4 {[%clk 0:02:49.4]} 10... g5 {[%clk 0:02:36.2]} 11. fxg5 {[%clk 0:02:46.4]}
11... Ne5 {[%clk 0:02:34.9]} 12. Qe2 {[%clk 0:02:41.5]} 12... Nfg4 {[%clk
0:02:34.9]} 13. Kb1 {[%clk 0:02:37]} 13... hxg5 {[%clk 0:02:33.3]} 14. Bg3
{[%clk 0:02:34.4]} 14... Qc7 {[%clk 0:02:16.5]} 15. Nf3 {[%clk 0:02:30]} 15...
Nxf3 {[%clk 0:02:11.6]} 16. gxf3 {[%clk 0:02:28.2]} 16... Ne5 {[%clk 0:02:10.5]}
17. f4 {[%clk 0:02:17]} 17... gxf4 {[%clk 0:02:10]} 18. Bxf4 {[%clk 0:02:16.4]}
18... Bd7 {[%clk 0:02:10.6]} 19. h4 {[%clk 0:01:57.3]} 19... O-O-O {[%clk
0:02:06.9]} 20. h5 {[%clk 0:01:56.2]} 20... Kb8 {[%clk 0:02:01.4]} 21. h6 {[%clk
0:01:54.3]} 21... Ng6 {[%clk 0:01:59]} 22. Be3 {[%clk 0:01:47.8]} 22... Bc6
{[%clk 0:01:54.4]} 23. Bd4 {[%clk 0:01:40.2]} 23... e5 {[%clk 0:01:53.4]} 24.
Be3 {[%clk 0:01:37.4]} 24... f5 {[%clk 0:01:42]} 25. exf5 {[%clk 0:01:28]} 25...
Nf4 {[%clk 0:01:42.1]} 26. Bxf4 {[%clk 0:01:16.4]} 26... Bxh1 {[%clk 0:01:41.7]}
27. Be3 {[%clk 0:01:11.7]} 27... Bc6 {[%clk 0:01:30.3]} 28. Bg2 {[%clk
0:01:01.6]} 28... Rdf8 {[%clk 0:01:08.5]} 29. Bxc6 {[%clk 0:00:54.5]} 29... Qxc6
{[%clk 0:01:08.2]} 30. Nd5 {[%clk 0:00:52.3]} 30... Bd8 {[%clk 0:01:08.4]} 31.
Qd3 {[%clk 0:00:41.7]} 31... Qa4 {[%clk 0:00:54.8]} 32. c4 {[%clk 0:00:25.9]}
32... e4 {[%clk 0:00:45.8]} 33. Qd4 {[%clk 0:00:23.6]} 33... Rxf5 {[%clk
0:00:41.4]} 34. Qa7+ {[%clk 0:00:19.1]} 34... Kc8 {[%clk 0:00:41.5]} 35. Qa8+
{[%clk 0:00:18.2]} 35... Kd7 {[%clk 0:00:41.8]} 36. Qxb7+ {[%clk 0:00:17.7]}
36... Ke6 {[%clk 0:00:38.8]} 37. b3 {[%clk 0:00:16]} 37... Qd7 {[%clk
0:00:31.9]} 38. Qxa6 {[%clk 0:00:14.9]} 38... Rxd5 {[%clk 0:00:23.5]} 39. cxd5+
{[%clk 0:00:13.8]} 39... Kf7 {[%clk 0:00:14.8]} 40. Qc4 {[%clk 0:00:13.6]} 40...
Qf5 {[%clk 0:00:11.8]} 41. Rf1 {[%clk 0:00:12.5]} 41... Qxf1+ {[%clk 0:00:10.2]}
42. Qxf1+ {[%clk 0:00:11.7]} 1-0